[Event "Early-Titled-Tuesday-Blitz-October-03-2023"]
[Site "Chess.com"]
[Date "2023.10.03"]
[Round "7"]
[White "Orujov2008"]
[Black "chesskov1982"]
[Result "0-1"]
[WhiteElo "2651"]
[BlackElo "2826"]
[TimeControl "180+1"]
[EndTime "9:19:25 PDT"]
[Termination "chesskov1982 won by checkmate"]

1. e4 {[%clk 0:03:00.9]} 1... c6 {[%clk 0:02:54.4]} 2. d4 {[%clk 0:03:00.8]}
2... d5 {[%clk 0:02:55.3]} 3. Nc3 {[%clk 0:03:01.2]} 3... dxe4 {[%clk
0:02:47.7]} 4. Nxe4 {[%clk 0:03:02.1]} 4... Bf5 {[%clk 0:02:47.8]} 5. Ng3 {[%clk
0:03:00]} 5... Bg6 {[%clk 0:02:45.3]} 6. Nf3 {[%clk 0:03:00.4]} 6... Nf6 {[%clk
0:02:42.9]} 7. h4 {[%clk 0:03:00.5]} 7... h6 {[%clk 0:02:42.4]} 8. h5 {[%clk
0:02:59.8]} 8... Bh7 {[%clk 0:02:41.1]} 9. Bd3 {[%clk 0:03:00.2]} 9... Bxd3
{[%clk 0:02:40.9]} 10. Qxd3 {[%clk 0:03:01.1]} 10... e6 {[%clk 0:02:41.5]} 11.
Bd2 {[%clk 0:02:59]} 11... Be7 {[%clk 0:02:37.2]} 12. O-O-O {[%clk 0:02:58.7]}
12... O-O {[%clk 0:02:21.4]} 13. Ne4 {[%clk 0:02:54.2]} 13... Nbd7 {[%clk
0:02:18.2]} 14. g4 {[%clk 0:02:52.5]} 14... Nxg4 {[%clk 0:01:52.9]} 15. Rhg1
{[%clk 0:02:52.2]} 15... f5 {[%clk 0:01:50.1]} 16. Qc4 {[%clk 0:02:48.1]} 16...
Rf7 {[%clk 0:01:33.9]} 17. Nc3 {[%clk 0:02:46.8]} 17... Nf8 {[%clk 0:01:25.5]}
18. Bf4 {[%clk 0:02:40.9]} 18... Nxf2 {[%clk 0:01:20.6]} 19. Rde1 {[%clk
0:02:38.7]} 19... Ng4 {[%clk 0:01:18.6]} 20. Kb1 {[%clk 0:02:32.4]} 20... Bf6
{[%clk 0:01:16.6]} 21. Ne2 {[%clk 0:02:24.4]} 21... Qd5 {[%clk 0:01:02.6]} 22.
Qd3 {[%clk 0:02:24.4]} 22... Rd8 {[%clk 0:00:46]} 23. Bc1 {[%clk 0:02:19.8]}
23... c5 {[%clk 0:00:44.3]} 24. Nf4 {[%clk 0:02:10.5]} 24... Qd7 {[%clk
0:00:40.7]} 25. d5 {[%clk 0:01:54.3]} 25... e5 {[%clk 0:00:38.3]} 26. Ne6 {[%clk
0:01:36.8]} 26... Nxe6 {[%clk 0:00:38.4]} 27. dxe6 {[%clk 0:01:28.2]} 27... Qxe6
{[%clk 0:00:39.3]} 28. Qe2 {[%clk 0:01:28.8]} 28... e4 {[%clk 0:00:37]} 29. Nh2
{[%clk 0:01:25.8]} 29... Ne5 {[%clk 0:00:35.4]} 30. Bxh6 {[%clk 0:01:19.2]}
30... Nc6 {[%clk 0:00:32]} 31. Bc1 {[%clk 0:01:12.7]} 31... Nb4 {[%clk
0:00:26.9]} 32. c4 {[%clk 0:01:10.2]} 32... Nd3 {[%clk 0:00:25.2]} 33. Nf3
{[%clk 0:01:06.8]} 33... Qb6 {[%clk 0:00:19.7]} 34. Ng5 {[%clk 0:01:02.1]} 34...
Rfd7 {[%clk 0:00:13.3]} 35. Nxe4 {[%clk 0:00:53.7]} 35... fxe4 {[%clk
0:00:13.1]} 36. h6 {[%clk 0:00:53.6]} 36... Nxc1 {[%clk 0:00:11]} 37. Kxc1
{[%clk 0:00:50.5]} 37... Rd2 {[%clk 0:00:11.1]} 38. Qxd2 {[%clk 0:00:42.4]}
38... Rxd2 {[%clk 0:00:12]} 39. Kxd2 {[%clk 0:00:43.1]} 39... Qxb2+ {[%clk
0:00:12.3]} 40. Ke3 {[%clk 0:00:41]} 40... Qd4+ {[%clk 0:00:12.4]} 41. Kf4
{[%clk 0:00:37.3]} 41... Qe5+ {[%clk 0:00:10.6]} 42. Ke3 {[%clk 0:00:35.8]}
42... Qc3+ {[%clk 0:00:08.4]} 43. Kf4 {[%clk 0:00:34.4]} 43... Qf3# {[%clk
0:00:08.5]} 0-1

[Event "Early-Titled-Tuesday-Blitz-October-03-2023"]
[Site "Chess.com"]
[Date "2023.10.03"]
[Round "7"]
[White "MatyChess1"]
[Black "hakanazeri2"]
[Result "1-0"]
[WhiteElo "2744"]
[BlackElo "2603"]
[TimeControl "180+1"]
[EndTime "9:19:27 PDT"]
[Termination "MatyChess1 won on time"]

1. d4 {[%clk 0:03:00.9]} 1... Nf6 {[%clk 0:02:58.7]} 2. Bf4 {[%clk 0:03:01.1]}
2... d5 {[%clk 0:02:57.7]} 3. e3 {[%clk 0:03:01.2]} 3... c5 {[%clk 0:02:55.6]}
4. Nf3 {[%clk 0:03:00.8]} 4... Nc6 {[%clk 0:02:56.1]} 5. Nbd2 {[%clk 0:03:00.9]}
5... Bf5 {[%clk 0:02:53.3]} 6. Bb5 {[%clk 0:02:57.5]} 6... Qb6 {[%clk
0:02:37.6]} 7. c4 {[%clk 0:02:54.2]} 7... dxc4 {[%clk 0:02:36.2]} 8. a4 {[%clk
0:02:53.2]} 8... Bd3 {[%clk 0:02:20.4]} 9. Ne5 {[%clk 0:02:33.8]} 9... e6 {[%clk
0:01:58]} 10. Ndxc4 {[%clk 0:02:26.2]} 10... Bxc4 {[%clk 0:01:57]} 11. Nxc4
{[%clk 0:02:27.1]} 11... Qd8 {[%clk 0:01:57.3]} 12. a5 {[%clk 0:02:24.8]} 12...
cxd4 {[%clk 0:01:48.2]} 13. a6 {[%clk 0:02:24.1]} 13... Qd5 {[%clk 0:01:03]} 14.
axb7 {[%clk 0:02:04.2]} 14... Bb4+ {[%clk 0:00:51.1]} 15. Kf1 {[%clk 0:02:02.8]}
15... Rd8 {[%clk 0:00:51.7]} 16. Qa4 {[%clk 0:02:02.5]} 16... O-O {[%clk
0:00:49.9]} 17. Rc1 {[%clk 0:01:49.6]} 17... dxe3 {[%clk 0:00:42.4]} 18. Nxe3
{[%clk 0:01:23.9]} 18... Qd4 {[%clk 0:00:27.7]} 19. Bg3 {[%clk 0:01:15.4]} 19...
Nb8 {[%clk 0:00:16.8]} 20. Be2 {[%clk 0:00:21.6]} 20... Qxb2 {[%clk 0:00:09.4]}
21. Qc2 {[%clk 0:00:21]} 21... Qxc2 {[%clk 0:00:08.7]} 22. Rxc2 {[%clk
0:00:20.9]} 22... Ne4 {[%clk 0:00:08.9]} 23. Bc7 {[%clk 0:00:18.8]} 23... Rd7
{[%clk 0:00:04.5]} 24. Bb5 {[%clk 0:00:18.2]} 24... Rxc7 {[%clk 0:00:02.5]} 25.
Rxc7 {[%clk 0:00:19.1]} 25... Bd6 {[%clk 0:00:02.9]} 26. Rc8 {[%clk 0:00:18.8]}
26... Nc5 {[%clk 0:00:02.8]} 27. Nc4 {[%clk 0:00:17.4]} 27... Be7 {[%clk
0:00:01.8]} 28. Na5 {[%clk 0:00:14.3]} 28... f5 {[%clk 0:00:01.3]} 29. Bc4
{[%clk 0:00:13.8]} 29... Kf7 {[%clk 0:00:01.6]} 30. Ke2 {[%clk 0:00:13.5]} 30...
Kf6 {[%clk 0:00:01.1]} 31. Rb1 {[%clk 0:00:13.7]} 1-0

[Event "Early-Titled-Tuesday-Blitz-October-03-2023"]
[Site "Chess.com"]
[Date "2023.10.03"]
[Round "7"]
[White "LionTheLeon_06"]
[Black "arminmusovic"]
[Result "1-0"]
[WhiteElo "2785"]
[BlackElo "2506"]
[TimeControl "180+1"]
[EndTime "9:19:27 PDT"]
[Termination "LionTheLeon_06 won by resignation"]

1. e4 {[%clk 0:03:00.9]} 1... c6 {[%clk 0:02:59.6]} 2. Nf3 {[%clk 0:03:01.2]}
2... d5 {[%clk 0:03:00]} 3. Nc3 {[%clk 0:03:01.9]} 3... dxe4 {[%clk 0:03:00.1]}
4. Nxe4 {[%clk 0:03:02]} 4... Nf6 {[%clk 0:03:00.6]} 5. Nxf6+ {[%clk 0:03:02.3]}
5... exf6 {[%clk 0:03:01.5]} 6. d4 {[%clk 0:03:02.8]} 6... Bd6 {[%clk
0:03:01.8]} 7. Qe2+ {[%clk 0:03:02.6]} 7... Be6 {[%clk 0:02:58.3]} 8. Qd3 {[%clk
0:02:16.9]} 8... O-O {[%clk 0:02:44.8]} 9. Be2 {[%clk 0:02:17.6]} 9... Re8
{[%clk 0:02:45.2]} 10. O-O {[%clk 0:02:17.9]} 10... Nd7 {[%clk 0:02:43.9]} 11.
Re1 {[%clk 0:02:16.3]} 11... Bg4 {[%clk 0:02:39.3]} 12. Be3 {[%clk 0:02:13.8]}
12... Rc8 {[%clk 0:02:34.7]} 13. c4 {[%clk 0:02:13.6]} 13... Bb8 {[%clk
0:02:35]} 14. Nh4 {[%clk 0:01:52.8]} 14... Qc7 {[%clk 0:02:28.2]} 15. g3 {[%clk
0:01:50.6]} 15... Bxe2 {[%clk 0:02:20.4]} 16. Rxe2 {[%clk 0:01:51.5]} 16... Rcd8
{[%clk 0:02:20.9]} 17. Rae1 {[%clk 0:01:13.1]} 17... Nc5 {[%clk 0:02:09.2]} 18.
Qc2 {[%clk 0:01:07.6]} 18... Ne6 {[%clk 0:02:06.8]} 19. Nf3 {[%clk 0:01:04.6]}
19... Qa5 {[%clk 0:02:02.2]} 20. a3 {[%clk 0:00:57.2]} 20... Qh5 {[%clk
0:01:59.6]} 21. Kg2 {[%clk 0:00:57.4]} 21... g5 {[%clk 0:01:49.7]} 22. Qf5
{[%clk 0:00:48.9]} 22... Ng7 {[%clk 0:01:45.5]} 23. Qxf6 {[%clk 0:00:42.8]}
23... h6 {[%clk 0:01:25.1]} 24. Bxg5 {[%clk 0:00:29.9]} 24... hxg5 {[%clk
0:01:20.8]} 25. Rxe8+ {[%clk 0:00:29.8]} 25... Rxe8 {[%clk 0:01:19.1]} 26. Rxe8+
{[%clk 0:00:30]} 26... Nxe8 {[%clk 0:01:19.7]} 27. Qd8 {[%clk 0:00:30.3]} 27...
g4 {[%clk 0:00:56.8]} 28. Qxe8+ {[%clk 0:00:29.4]} 28... Kg7 {[%clk 0:00:51.9]}
29. Ne5 {[%clk 0:00:26.8]} 29... Bd6 {[%clk 0:00:52.1]} 30. c5 {[%clk
0:00:21.2]} 30... Bxe5 {[%clk 0:00:41.6]} 31. Qxe5+ {[%clk 0:00:21.1]} 31...
Qxe5 {[%clk 0:00:41.9]} 32. dxe5 {[%clk 0:00:22]} 32... Kg6 {[%clk 0:00:42.6]}
33. h3 {[%clk 0:00:19.8]} 33... gxh3+ {[%clk 0:00:37.7]} 34. Kxh3 {[%clk
0:00:20.7]} 34... Kf5 {[%clk 0:00:36.3]} 35. f4 {[%clk 0:00:21.3]} 35... b5
{[%clk 0:00:35.8]} 36. Kg2 {[%clk 0:00:20.3]} 36... Ke4 {[%clk 0:00:35.9]} 37.
Kf2 {[%clk 0:00:20.4]} 37... a5 {[%clk 0:00:35.1]} 38. b4 {[%clk 0:00:20.6]}
38... axb4 {[%clk 0:00:24]} 39. axb4 {[%clk 0:00:21.5]} 39... Kd4 {[%clk
0:00:24.5]} 40. Kf3 {[%clk 0:00:20.3]} 40... Kc4 {[%clk 0:00:24.8]} 41. f5
{[%clk 0:00:20.5]} 1-0

[Event "Early-Titled-Tuesday-Blitz-October-03-2023"]
[Site "Chess.com"]
[Date "2023.10.03"]
[Round "7"]
[White "Balla_Tamas"]
[Black "Djager97"]
[Result "1-0"]
[WhiteElo "2456"]
[BlackElo "2576"]
[TimeControl "180+1"]
[EndTime "9:19:27 PDT"]
[Termination "Balla_Tamas won on time"]

1. e4 {[%clk 0:02:58.7]} 1... e5 {[%clk 0:03:00]} 2. Nf3 {[%clk 0:02:58.8]} 2...
Nc6 {[%clk 0:02:59.6]} 3. d4 {[%clk 0:02:58.4]} 3... exd4 {[%clk 0:02:59.7]} 4.
Nxd4 {[%clk 0:02:59.3]} 4... Nf6 {[%clk 0:03:00.2]} 5. Nxc6 {[%clk 0:02:58.7]}
5... bxc6 {[%clk 0:02:58.8]} 6. e5 {[%clk 0:02:59.1]} 6... Qe7 {[%clk
0:02:57.8]} 7. Qe2 {[%clk 0:02:59.7]} 7... Nd5 {[%clk 0:02:57.5]} 8. h4 {[%clk
0:03:00.3]} 8... f6 {[%clk 0:02:57]} 9. Rh3 {[%clk 0:02:59.9]} 9... fxe5 {[%clk
0:02:47.6]} 10. c4 {[%clk 0:02:57]} 10... Ba6 {[%clk 0:02:24.9]} 11. Bd2 {[%clk
0:02:12.3]} 11... O-O-O {[%clk 0:01:38.6]} 12. Qd1 {[%clk 0:01:18.1]} 12... Nb6
{[%clk 0:01:30.1]} 13. c5 {[%clk 0:01:10.5]} 13... Bxf1 {[%clk 0:01:27.4]} 14.
cxb6 {[%clk 0:01:08.9]} 14... Bxg2 {[%clk 0:01:23.2]} 15. bxa7 {[%clk
0:01:07.1]} 15... Kb7 {[%clk 0:01:23.8]} 16. Rb3+ {[%clk 0:00:59.5]} 16... Ka8
{[%clk 0:01:23.6]} 17. Bg5 {[%clk 0:00:38.1]} 17... Qf7 {[%clk 0:00:44.1]} 18.
Bxd8 {[%clk 0:00:37.2]} 18... Bc5 {[%clk 0:00:44.8]} 19. Qc2 {[%clk 0:00:19.6]}
19... d6 {[%clk 0:00:14.9]} 20. Nc3 {[%clk 0:00:15.9]} 20... Rxd8 {[%clk
0:00:13.9]} 21. O-O-O {[%clk 0:00:15.3]} 21... Qxf2 {[%clk 0:00:12]} 22. Qxh7
{[%clk 0:00:14.5]} 22... e4 {[%clk 0:00:04.9]} 23. Kb1 {[%clk 0:00:12.8]} 23...
e3 {[%clk 0:00:04.5]} 24. Qd3 {[%clk 0:00:12.5]} 24... d5 {[%clk 0:00:03.3]} 25.
Qa6 {[%clk 0:00:11.4]} 25... Bb6 {[%clk 0:00:02.5]} 26. Na4 {[%clk 0:00:10.9]}
26... Qf5+ {[%clk 0:00:02.1]} 27. Ka1 {[%clk 0:00:10.8]} 27... Qc2 {[%clk
0:00:01.3]} 28. Nxb6+ {[%clk 0:00:11]} 28... cxb6 {[%clk 0:00:01.3]} 29. Rb1
{[%clk 0:00:09.6]} 1-0

[Event "Early-Titled-Tuesday-Blitz-October-03-2023"]
[Site "Chess.com"]
[Date "2023.10.03"]
[Round "7"]
[White "Eagle_2019"]
[Black "wild3000"]
[Result "1-0"]
[WhiteElo "2685"]
[BlackElo "2431"]
[TimeControl "180+1"]
[EndTime "9:19:29 PDT"]
[Termination "Eagle_2019 won by resignation"]

1. d4 {[%clk 0:03:00.9]} 1... d5 {[%clk 0:02:59.9]} 2. c4 {[%clk 0:03:00]} 2...
e6 {[%clk 0:02:59.8]} 3. Nf3 {[%clk 0:02:58.1]} 3... Nf6 {[%clk 0:03:00.1]} 4.
Nc3 {[%clk 0:02:57.1]} 4... Be7 {[%clk 0:03:00.4]} 5. cxd5 {[%clk 0:02:56]} 5...
Nxd5 {[%clk 0:03:00.8]} 6. e4 {[%clk 0:02:55.3]} 6... Nxc3 {[%clk 0:03:01.3]} 7.
bxc3 {[%clk 0:02:56.2]} 7... c5 {[%clk 0:03:01.8]} 8. Be2 {[%clk 0:02:54.7]}
8... O-O {[%clk 0:02:59.2]} 9. O-O {[%clk 0:02:54.2]} 9... b6 {[%clk 0:02:54.6]}
10. Be3 {[%clk 0:02:51.9]} 10... cxd4 {[%clk 0:02:51.4]} 11. cxd4 {[%clk
0:02:51.5]} 11... Bb7 {[%clk 0:02:52]} 12. Qb1 {[%clk 0:02:41.8]} 12... Nc6
{[%clk 0:02:49]} 13. Rd1 {[%clk 0:02:30.1]} 13... Na5 {[%clk 0:02:48.8]} 14. a4
{[%clk 0:02:17.5]} 14... Rc8 {[%clk 0:02:47.8]} 15. d5 {[%clk 0:02:05.5]} 15...
exd5 {[%clk 0:02:43.9]} 16. exd5 {[%clk 0:02:03.8]} 16... Bf6 {[%clk 0:02:35.5]}
17. Ra2 {[%clk 0:01:48.1]} 17... Nc4 {[%clk 0:02:13.7]} 18. Bxc4 {[%clk
0:01:36.8]} 18... Rxc4 {[%clk 0:02:14.6]} 19. a5 {[%clk 0:01:36.9]} 19... Qd6
{[%clk 0:01:36.9]} 20. axb6 {[%clk 0:01:29.4]} 20... axb6 {[%clk 0:01:37]} 21.
Qd3 {[%clk 0:01:03.6]} 21... Rfc8 {[%clk 0:01:24.3]} 22. h3 {[%clk 0:01:01.2]}
22... b5 {[%clk 0:01:24.2]} 23. Ra7 {[%clk 0:00:58.8]} 23... Ba8 {[%clk
0:01:11.2]} 24. Ra5 {[%clk 0:00:52.3]} 24... b4 {[%clk 0:01:07.7]} 25. Rxa8
{[%clk 0:00:49.8]} 25... h6 {[%clk 0:00:57.5]} 26. Qxc4 {[%clk 0:00:48]} 26...
Rxa8 {[%clk 0:00:57]} 27. Qc6 {[%clk 0:00:45.3]} 27... Qxc6 {[%clk 0:00:52.5]}
28. dxc6 {[%clk 0:00:46.2]} 28... Rc8 {[%clk 0:00:53.2]} 29. Nd4 {[%clk
0:00:43.5]} 29... Bxd4 {[%clk 0:00:44.8]} 30. Rxd4 {[%clk 0:00:42.3]} 30... Rxc6
{[%clk 0:00:45.7]} 31. Rxb4 {[%clk 0:00:41.5]} 31... f6 {[%clk 0:00:46]} 32. g4
{[%clk 0:00:38.1]} 32... Kh7 {[%clk 0:00:45.4]} 33. Kg2 {[%clk 0:00:38]} 33...
Kg6 {[%clk 0:00:45.4]} 34. Rb7 {[%clk 0:00:37.7]} 34... Rc4 {[%clk 0:00:43.5]}
35. f4 {[%clk 0:00:37.4]} 35... Rc3 {[%clk 0:00:42.1]} 36. f5+ {[%clk
0:00:36.1]} 36... Kh7 {[%clk 0:00:42]} 37. Bd4 {[%clk 0:00:35.9]} 37... Rc6
{[%clk 0:00:40.6]} 38. Kf3 {[%clk 0:00:35.6]} 38... Rd6 {[%clk 0:00:39.7]} 39.
Ke4 {[%clk 0:00:34.9]} 39... Ra6 {[%clk 0:00:39.7]} 40. h4 {[%clk 0:00:34.6]}
40... Kg8 {[%clk 0:00:37]} 41. g5 {[%clk 0:00:33.9]} 41... hxg5 {[%clk 0:00:37]}
42. hxg5 {[%clk 0:00:33.8]} 42... Kh7 {[%clk 0:00:36.3]} 43. gxf6 {[%clk
0:00:33]} 43... Kg8 {[%clk 0:00:35.4]} 44. Rxg7+ {[%clk 0:00:29.2]} 44... Kh8
{[%clk 0:00:35.2]} 45. Rb7 {[%clk 0:00:28.6]} 45... Ra8 {[%clk 0:00:31.9]} 46.
f7+ {[%clk 0:00:27.5]} 1-0

[Event "Early-Titled-Tuesday-Blitz-October-03-2023"]
[Site "Chess.com"]
[Date "2023.10.03"]
[Round "7"]
[White "FoxOnTheRun97"]
[Black "ChessQueen"]
[Result "1/2-1/2"]
[WhiteElo "2525"]
[BlackElo "2719"]
[TimeControl "180+1"]
[EndTime "9:19:30 PDT"]
[Termination "Game drawn by agreement"]

1. d4 {[%clk 0:03:00.9]} 1... Nf6 {[%clk 0:02:58.8]} 2. c4 {[%clk 0:02:58]} 2...
e6 {[%clk 0:02:59]} 3. Nf3 {[%clk 0:02:56.9]} 3... d5 {[%clk 0:02:59.1]} 4. g3
{[%clk 0:02:57.5]} 4... dxc4 {[%clk 0:02:58.5]} 5. Bg2 {[%clk 0:02:54.7]} 5...
Nc6 {[%clk 0:02:58.6]} 6. O-O {[%clk 0:02:47.5]} 6... Rb8 {[%clk 0:02:56.9]} 7.
a4 {[%clk 0:02:43.5]} 7... Be7 {[%clk 0:02:48.9]} 8. Na3 {[%clk 0:02:27.5]} 8...
Na5 {[%clk 0:02:47.2]} 9. Rb1 {[%clk 0:01:54.7]} 9... Bxa3 {[%clk 0:02:38.7]}
10. bxa3 {[%clk 0:01:54.4]} 10... O-O {[%clk 0:02:35.3]} 11. Ne5 {[%clk
0:01:38]} 11... Nb3 {[%clk 0:02:17.3]} 12. Bb2 {[%clk 0:01:25.1]} 12... Bd7
{[%clk 0:02:10.3]} 13. Nxc4 {[%clk 0:01:15.4]} 13... Bxa4 {[%clk 0:02:09.6]} 14.
Bc3 {[%clk 0:00:56.3]} 14... Nc5 {[%clk 0:01:53.3]} 15. Qc1 {[%clk 0:00:53.6]}
15... Nce4 {[%clk 0:01:29.2]} 16. Ba1 {[%clk 0:00:46.8]} 16... Nd6 {[%clk
0:01:06.5]} 17. Ne5 {[%clk 0:00:34.1]} 17... c6 {[%clk 0:01:00.1]} 18. Rb4
{[%clk 0:00:26]} 18... Bb5 {[%clk 0:00:59.2]} 19. Re1 {[%clk 0:00:23.5]} 19...
a5 {[%clk 0:00:57.6]} 20. Rb1 {[%clk 0:00:22.8]} 20... a4 {[%clk 0:00:56.4]} 21.
Bc3 {[%clk 0:00:20.5]} 21... Re8 {[%clk 0:00:53.3]} 22. Bb4 {[%clk 0:00:19.5]}
22... Nd5 {[%clk 0:00:52.1]} 23. Bc5 {[%clk 0:00:16.1]} 23... f6 {[%clk
0:00:48.9]} 24. Ng4 {[%clk 0:00:10]} 24... Nf7 {[%clk 0:00:45]} 25. e4 {[%clk
0:00:08.7]} 25... Ne7 {[%clk 0:00:43.9]} 26. Ne3 {[%clk 0:00:06.2]} 26... b6
{[%clk 0:00:40.8]} 27. Bxe7 {[%clk 0:00:06.6]} 27... Rxe7 {[%clk 0:00:41]} 28.
Rd1 {[%clk 0:00:07.2]} 28... Rd7 {[%clk 0:00:41.1]} 29. d5 {[%clk 0:00:06.9]}
29... exd5 {[%clk 0:00:39.6]} 30. exd5 {[%clk 0:00:07.2]} 30... Ne5 {[%clk
0:00:34.9]} 31. dxc6 {[%clk 0:00:06.8]} 31... Rxd1+ {[%clk 0:00:35]} 32. Qxd1
{[%clk 0:00:06.6]} 32... Qxd1+ {[%clk 0:00:35]} 33. Nxd1 {[%clk 0:00:04.8]}
33... Bxc6 {[%clk 0:00:35.8]} 34. Bxc6 {[%clk 0:00:03.4]} 34... Nxc6 {[%clk
0:00:35.9]} 35. Nc3 {[%clk 0:00:03.8]} 35... b5 {[%clk 0:00:28.6]} 36. Rxb5
{[%clk 0:00:02.9]} 36... Rxb5 {[%clk 0:00:25.3]} 37. Nxb5 {[%clk 0:00:03.8]}
37... Ne5 {[%clk 0:00:24.6]} 38. Nc3 {[%clk 0:00:04.1]} 38... Nc4 {[%clk
0:00:25.2]} 39. Nxa4 {[%clk 0:00:04.8]} 39... Nxa3 {[%clk 0:00:25.8]} 40. Nc3
{[%clk 0:00:05.2]} 40... Nc4 {[%clk 0:00:24.2]} 1/2-1/2

[Event "Early-Titled-Tuesday-Blitz-October-03-2023"]
[Site "Chess.com"]
[Date "2023.10.03"]
[Round "7"]
[White "goldihouse"]
[Black "C_K_G"]
[Result "1-0"]
[WhiteElo "2594"]
[BlackElo "1903"]
[TimeControl "180+1"]
[EndTime "9:19:35 PDT"]
[Termination "goldihouse won on time"]

1. c4 {[%clk 0:03:00.6]} 1... e5 {[%clk 0:02:58.9]} 2. g3 {[%clk 0:02:59.2]}
2... Bc5 {[%clk 0:02:58.3]} 3. Bg2 {[%clk 0:02:59.5]} 3... Nc6 {[%clk
0:02:56.9]} 4. Nc3 {[%clk 0:02:59.4]} 4... a6 {[%clk 0:02:56]} 5. e3 {[%clk
0:02:59.6]} 5... d6 {[%clk 0:02:53.8]} 6. Nge2 {[%clk 0:02:59.8]} 6... Ba7
{[%clk 0:02:52.9]} 7. a3 {[%clk 0:02:58.3]} 7... Nge7 {[%clk 0:02:50.1]} 8. d3
{[%clk 0:02:58.2]} 8... Bg4 {[%clk 0:02:42.6]} 9. h3 {[%clk 0:02:58]} 9... Bh5
{[%clk 0:02:42.2]} 10. g4 {[%clk 0:02:57.9]} 10... Bg6 {[%clk 0:02:42]} 11. Ng3
{[%clk 0:02:57.6]} 11... Qd7 {[%clk 0:02:30.4]} 12. b4 {[%clk 0:02:55.4]} 12...
f5 {[%clk 0:02:22.3]} 13. Qe2 {[%clk 0:02:54.5]} 13... O-O {[%clk 0:02:12.7]}
14. Bd2 {[%clk 0:02:50.9]} 14... f4 {[%clk 0:01:38]} 15. Nge4 {[%clk 0:02:50.3]}
15... fxe3 {[%clk 0:01:29]} 16. fxe3 {[%clk 0:02:48.8]} 16... Kh8 {[%clk
0:01:17.1]} 17. Rf1 {[%clk 0:02:45.6]} 17... d5 {[%clk 0:01:08.7]} 18. cxd5
{[%clk 0:02:45.4]} 18... Nxd5 {[%clk 0:01:08.7]} 19. Rd1 {[%clk 0:02:45.3]}
19... Nxc3 {[%clk 0:00:53.6]} 20. Bxc3 {[%clk 0:02:42.1]} 20... Qe7 {[%clk
0:00:51.2]} 21. Kd2 {[%clk 0:02:07.9]} 21... Rad8 {[%clk 0:00:44.7]} 22. Kc1
{[%clk 0:02:07.3]} 22... a5 {[%clk 0:00:33.9]} 23. b5 {[%clk 0:02:00.6]} 23...
Bxe4 {[%clk 0:00:21.6]} 24. Bxe4 {[%clk 0:01:58.9]} 24... Qxa3+ {[%clk
0:00:20.2]} 25. Qb2 {[%clk 0:01:37.6]} 25... Bxe3+ {[%clk 0:00:19.2]} 26. Kb1
{[%clk 0:01:37.8]} 26... Qxb2+ {[%clk 0:00:17.3]} 27. Bxb2 {[%clk 0:01:37.2]}
27... Nd4 {[%clk 0:00:15.2]} 28. Bxb7 {[%clk 0:01:34.7]} 28... Nxb5 {[%clk
0:00:12.2]} 29. Bc6 {[%clk 0:01:17.2]} 29... Nd4 {[%clk 0:00:11.3]} 30. Be4
{[%clk 0:01:16.1]} 30... Rb8 {[%clk 0:00:10.2]} 31. Ka2 {[%clk 0:01:16]} 31...
Rxf1 {[%clk 0:00:08.4]} 32. Rxf1 {[%clk 0:01:16]} 32... a4 {[%clk 0:00:08.6]}
33. Rf7 {[%clk 0:01:12]} 33... c5 {[%clk 0:00:07.1]} 34. Bd5 {[%clk 0:01:08.6]}
34... Bf4 {[%clk 0:00:04.6]} 35. Bc4 {[%clk 0:01:02.7]} 35... Nb3 {[%clk
0:00:03.9]} 36. Rc7 {[%clk 0:00:43.2]} 36... Nd2 {[%clk 0:00:02.4]} 37. Bd5
{[%clk 0:00:38.9]} 37... Nf1 {[%clk 0:00:01.6]} 38. Rxc5 {[%clk 0:00:35]} 38...
Ne3 {[%clk 0:00:01.8]} 39. Bf3 {[%clk 0:00:31.4]} 1-0

[Event "Early-Titled-Tuesday-Blitz-October-03-2023"]
[Site "Chess.com"]
[Date "2023.10.03"]
[Round "7"]
[White "pasteta13"]
[Black "Let_it_be_1"]
[Result "0-1"]
[WhiteElo "2436"]
[BlackElo "2627"]
[TimeControl "180+1"]
[EndTime "9:19:36 PDT"]
[Termination "Let_it_be_1 won on time"]

1. e4 {[%clk 0:03:00.9]} 1... e6 {[%clk 0:02:59.6]} 2. Nf3 {[%clk 0:03:01.3]}
2... d5 {[%clk 0:02:58.5]} 3. exd5 {[%clk 0:03:02.2]} 3... exd5 {[%clk
0:02:58.5]} 4. d4 {[%clk 0:03:03.1]} 4... Nf6 {[%clk 0:02:58.6]} 5. c4 {[%clk
0:03:03.8]} 5... Be7 {[%clk 0:02:58.3]} 6. Nc3 {[%clk 0:03:04.5]} 6... O-O
{[%clk 0:02:58.3]} 7. Bd3 {[%clk 0:03:04.2]} 7... dxc4 {[%clk 0:02:57.3]} 8.
Bxc4 {[%clk 0:03:05.1]} 8... Nbd7 {[%clk 0:02:57.6]} 9. O-O {[%clk 0:03:02.7]}
9... Nb6 {[%clk 0:02:57.6]} 10. Bb3 {[%clk 0:03:01]} 10... Nbd5 {[%clk
0:02:57.2]} 11. Ne5 {[%clk 0:02:53.3]} 11... c6 {[%clk 0:02:55.8]} 12. Re1
{[%clk 0:02:52]} 12... Be6 {[%clk 0:02:54.8]} 13. Bg5 {[%clk 0:02:48.8]} 13...
Re8 {[%clk 0:02:53]} 14. Qf3 {[%clk 0:02:44.5]} 14... Nc7 {[%clk 0:02:33.9]} 15.
Bc2 {[%clk 0:02:35.6]} 15... Nfd5 {[%clk 0:02:22]} 16. Bxe7 {[%clk 0:01:26.6]}
16... Qxe7 {[%clk 0:02:21.4]} 17. Rad1 {[%clk 0:01:11.4]} 17... Qf6 {[%clk
0:02:15.6]} 18. Qh5 {[%clk 0:01:02.1]} 18... g6 {[%clk 0:02:15.6]} 19. Qh6
{[%clk 0:01:01.6]} 19... Bf5 {[%clk 0:02:00.5]} 20. Ne4 {[%clk 0:00:51.6]} 20...
Qg7 {[%clk 0:01:51.8]} 21. Qh4 {[%clk 0:00:51.4]} 21... Re6 {[%clk 0:01:31.4]}
22. Bb3 {[%clk 0:00:38.7]} 22... Bxe4 {[%clk 0:01:27.5]} 23. Rxe4 {[%clk
0:00:36.1]} 23... Rae8 {[%clk 0:01:25.9]} 24. Rde1 {[%clk 0:00:33]} 24... f6
{[%clk 0:01:02.4]} 25. Nd3 {[%clk 0:00:32.4]} 25... Kf8 {[%clk 0:00:32.4]} 26.
f3 {[%clk 0:00:31.5]} 26... f5 {[%clk 0:00:28.3]} 27. Re5 {[%clk 0:00:30.4]}
27... Rxe5 {[%clk 0:00:25.4]} 28. Rxe5 {[%clk 0:00:30.5]} 28... Rxe5 {[%clk
0:00:23.8]} 29. Nxe5 {[%clk 0:00:30.6]} 29... Qe7 {[%clk 0:00:20.5]} 30. Qh6+
{[%clk 0:00:26.9]} 30... Ke8 {[%clk 0:00:20.4]} 31. h4 {[%clk 0:00:20.6]} 31...
c5 {[%clk 0:00:20.8]} 32. Qd2 {[%clk 0:00:15.5]} 32... b5 {[%clk 0:00:17.9]} 33.
f4 {[%clk 0:00:07.3]} 33... c4 {[%clk 0:00:18.1]} 34. Bd1 {[%clk 0:00:07.6]}
34... Qxh4 {[%clk 0:00:16.1]} 35. Nf3 {[%clk 0:00:02.5]} 35... Qxf4 {[%clk
0:00:15.4]} 0-1